bitfinex/quotes_SOLUSD_20250722
["timestamp","ask_amount","ask_price","bid_price","bid_amount"]
[1753203858145,35.32,203.49,203.47,9.75295587]
[1753203858647,40.23426048,203.49,203.47,9.75295587]
[1753203859072,40.23426048,203.49,203.46,9.75295587]
[1753203859772,40.23426048,203.49,203.45,9.75295587]
[1753203860276,40.92426048,203.49,203.45,9.75295587]
[1753203860471,40.23426048,203.49,203.46,9.75295587]
[1753203860670,35.32,203.49,203.47,9.75295587]
[1753203860971,35.32,203.49,203.48,9.75295587]
[1753203861272,40.2342464,203.49,203.48,9.75295587]
[1753203862175,35.32,203.52,203.48,9.75295587]
[1753203862366,35.32,203.52,203.51,9.75295587]
[1753203864878,0.06,203.53,203.51,9.75295587]
[1753203865057,0.06,203.53,203.52,9.75295587]
[1753203868553,0.06,203.53,203.52,19.50591174]
[1753203869978,0.06,203.54,203.53,16.78468397]
[1753203870165,0.06,203.54,203.53,27.02896789]
[1753203870555,0.06,203.54,203.53,88.6]
[1753203870760,0.06,203.54,203.53,127.84295587]
[1753203871771,0.06,203.54,203.53,98.35295587]
[1753203872481,0.06,203.54,203.48,9.75295587]
[1753203872482,0.75,203.54,203.48,9.75295587]
[1753203873007,10.50295587,203.54,203.48,9.75295587]
[1753203873211,0.75,203.54,203.48,9.75295587]
[1753203873371,4.91328059,203.53,203.48,9.75295587]
[1753203873572,4.91328059,203.53,203.42,29.49]
[1753203873573,9.75295587,203.51,203.42,29.49]
[1753203873793,35.28,203.5,203.44,9.75295587]
[1753203873991,35.97,203.5,203.45,9.75295587]
[1753203874197,35.28,203.5,203.47,9.75295587]
[1753203874691,35.28,203.5,203.39,21.55028671]
[1753203874692,26.0,203.47,203.42,9.75295587]
[1753203874889,35.28,203.46,203.42,9.75295587]
[1753203875189,35.97,203.46,203.42,9.75295587]
[1753203875772,4.91521258,203.45,203.42,9.75295587]
[1753203876984,0.69,203.44,203.37,9.75295587]
[1753203877185,9.75295587,203.43,203.37,9.75295587]
[1753203877394,35.28,203.42,203.37,9.75295587]
[1753203877595,35.28,203.42,203.38,9.75295587]
[1753203877897,35.28,203.42,203.41,9.75295587]
[1753203878299,35.28,203.42,203.4,9.75295587]
[1753203878497,40.19593746,203.42,203.4,9.75295587]
[1753203878675,35.28,203.42,203.4,9.75295587]
[1753203879206,35.28,203.42,203.41,9.75295587]
[1753203879985,4.91522454,203.45,203.41,9.75295587]
[1753203879986,35.28,203.45,203.41,9.75295587]
[1753203880185,35.28,203.45,203.44,9.75295587]
[1753203880502,35.28,203.45,203.4,9.75295587]
[1753203880677,0.69,203.44,203.4,9.75295587]
[1753203880886,35.28,203.45,203.39,9.75295587]
[1753203880887,0.69,203.43,203.39,9.75295587]
[1753203881515,35.97,203.45,203.4,9.75295587]
[1753203881692,35.28,203.45,203.4,9.75295587]
[1753203882013,35.28,203.45,203.42,9.75295587]
[1753203882190,35.28,203.45,203.43,9.75295587]
[1753203882389,35.28,203.45,203.44,9.75295587]
[1753203882694,4.91421082,203.5,203.44,9.75295587]
[1753203882905,4.91421082,203.5,203.49,9.75295587]
[1753203883097,35.28,203.5,203.49,9.75295587]
[1753203883802,35.28,203.5,203.45,0.49152125]
[1753203884005,35.28,203.5,203.49,9.75295587]
[1753203885199,40.19400491,203.5,203.49,9.75295587]
[1753203886388,35.28,203.5,203.49,9.75295587]
[1753203887201,40.19400491,203.5,203.49,9.75295587]
[1753203887587,35.28,203.5,203.49,9.75295587]
[1753203888106,0.06,203.54,203.49,9.75295587]
[1753203888303,61.28,203.53,203.46,16.78468397]
[1753203888506,61.28,203.53,203.52,9.75295587]
[1753203889010,61.28,203.53,203.46,16.78468397]
[1753203889199,61.28,203.53,203.52,9.75295587]
[1753203890182,35.28,203.53,203.52,9.75295587]
[1753203890623,0.06,203.54,203.52,9.75295587]
[1753203890787,0.06,203.54,203.53,9.75295587]
[1753203891283,4.9730392,203.54,203.53,9.75295587]
[1753203892081,4.9730392,203.54,203.5,9.75295587]
[1753203892285,0.06,203.54,203.53,9.75295587]
[1753203893697,0.06,203.54,203.51,9.75295587]
[1753203893698,4.97304042,203.54,203.51,9.75295587]
[1753203894203,0.06,203.54,203.5,9.75295587]
[1753203894399,9.75295587,203.51,203.48,0.03]
[1753203894598,35.26,203.5,203.48,0.03]
[1753203896407,4.9142464,203.49,203.48,0.03]
[1753203898014,0.06,203.54,203.49,46.27468397]
[1753203898215,0.06,203.54,203.53,9.75295587]
[1753203898916,0.06,203.54,203.53,56.02763984]
[1753203899092,0.06,203.57,203.53,130.07482043]
[1753203899296,0.06,203.57,203.56,82.16980141]
[1753203899496,0.06,203.57,203.56,84.59744626]
[1753203899916,0.06,203.57,203.56,82.02763984]
[1753203900220,0.06,203.57,203.5,29.49]
[1753203900419,15.41527104,203.57,203.5,39.24295587]
[1753203900623,9.75295587,203.54,203.48,0.03]
[1753203900923,9.75295587,203.52,203.48,0.03]
[1753203901121,35.26,203.53,203.48,9.78295587]
[1753203901425,35.32,203.57,203.52,39.24295587]
[1753203901597,0.06,203.57,203.55,9.75295587]
[1753203901997,0.06,203.57,203.56,9.75295587]
[1753203902238,0.06,203.57,203.56,39.24295587]
[1753203902527,0.06,203.57,203.53,9.75295587]
[1753203902701,0.06,203.57,203.5,35.26]
[1753203902702,0.75,203.57,203.52,9.75295587]
[1753203903104,10.44295587,203.56,203.5,45.01295587]
[1753203903318,10.44295587,203.56,203.5,35.26]
[1753203903525,9.75295587,203.55,203.5,29.49]
[1753203903713,0.69,203.54,203.48,39.27295587]
[1753203904031,10.44295587,203.54,203.48,39.27295587]
[1753203904516,4.91328059,203.53,203.48,39.27295587]
[1753203904708,5.60328059,203.53,203.48,39.27295587]
[1753203904914,5.60328059,203.53,203.48,29.52]
[1753203905322,0.69,203.52,203.49,4.917]
[1753203905524,5.60356183,203.52,203.48,29.52]
[1753203905724,4.91356183,203.52,203.48,39.27295587]
[1753203905914,4.9130392,203.54,203.49,9.75295587]
[1753203906107,5.6030392,203.54,203.49,9.75295587]
[1753203906328,0.69,203.53,203.49,9.75295587]
[1753203906515,0.69,203.53,203.48,9.78295587]
[1753203907027,0.69,203.53,203.48,0.03]
[1753203907701,4.91352201,203.52,203.48,0.03]
[1753203908929,5.60352201,203.52,203.48,0.03]
[1753203909142,10.44295587,203.51,203.48,0.03]
[1753203909432,0.69,203.51,203.48,0.03]
[1753203909629,5.60395004,203.51,203.48,0.03]
[1753203909845,61.93,203.56,203.5,9.75295587]
[1753203910009,4.91298785,203.55,203.51,9.75295587]
[1753203911222,61.24,203.56,203.53,9.75295587]
[1753203911928,10.44295587,203.55,203.48,29.52]
[1753203912124,10.44295587,203.55,203.48,39.27295587]
[1753203912321,10.44295587,203.55,203.49,9.75295587]
[1753203912525,30.91266445,203.56,203.52,9.75295587]
[1753203912839,0.69,203.55,203.51,0.03]
[1753203913725,5.60302927,203.55,203.51,0.03]
[1753203913926,10.44295587,203.54,203.51,0.03]
[1753203914124,0.69,203.54,203.51,0.03]
[1753203914332,30.91259326,203.56,203.53,9.75295587]
[1753203914714,0.06,203.57,203.55,9.75295587]
[1753203915037,14.72537805,203.57,203.51,0.03]
[1753203915224,0.69,203.56,203.51,0.03]
[1753203915543,0.69,203.56,203.52,9.75295587]
[1753203915915,4.97242218,203.57,203.52,9.75295587]
[1753203916423,4.97242218,203.57,203.53,9.75295587]
[1753203918532,9.75295587,203.54,203.51,0.03]
[1753203918735,35.24,203.53,203.51,0.03]
[1753203919041,10.41295587,203.52,203.51,0.03]
[1753203920042,0.66,203.52,203.51,0.03]
[1753203920424,4.91352201,203.52,203.51,0.03]
[1753203920632,35.24,203.53,203.51,9.78295587]
[1753203920827,4.9132395,203.54,203.51,9.78295587]
[1753203921232,4.9132395,203.54,203.51,0.03]
[1753203921624,5.5732395,203.54,203.51,0.03]
[1753203922622,4.91283337,203.55,203.52,9.75295587]
[1753203922848,4.91283337,203.55,203.51,0.03]
[1753203923161,0.66,203.54,203.51,0.03]
[1753203923916,0.66,203.53,203.51,0.03]
[1753203924323,5.57345899,203.53,203.51,0.03]
[1753203924850,44.99295587,203.56,203.51,0.03]
[1753203924851,4.91279783,203.55,203.52,9.75295587]
[1753203925028,40.15261339,203.56,203.53,9.75295587]
[1753203925747,9.75295587,203.54,203.51,0.03]
[1753203925924,9.75295587,203.53,203.51,0.03]
[1753203926133,52.43400462,203.56,203.51,0.03]
[1753203926529,10.41295587,203.55,203.51,0.03]
[1753203926742,0.66,203.55,203.51,0.03]
[1753203927171,40.15261339,203.56,203.51,9.78295587]
[1753203927355,35.24,203.56,203.53,9.75295587]
[1753203927823,0.06,203.57,203.55,9.75295587]
[1753203928160,0.06,203.57,203.56,27.02889548]
[1753203928327,0.06,203.57,203.56,27.17105705]
[1753203928654,0.06,203.57,203.56,32.08361354]
[1753203929534,0.06,203.57,203.56,0.49125564]
[1753203929731,0.06,203.57,203.56,9.75295587]
[1753203932239,0.06,203.57,203.54,35.22]
[1753203932444,0.06,203.57,203.54,44.97295587]
[1753203932642,0.72,203.57,203.52,9.75295587]
[1753203932840,0.72,203.57,203.51,16.81468397]
[1753203932841,10.41295587,203.56,203.51,0.03]
[1753203933131,9.75295587,203.53,203.51,0.03]
[1753203933333,10.41295587,203.52,203.51,0.03]
[1753203933736,15.32647788,203.52,203.51,0.03]
[1753203935654,15.32647788,203.52,203.51,1e-08]
[1753203935841,15.32647788,203.52,203.48,0.03]
[1753203935842,0.14216157,203.51,203.48,0.03]
[1753203936031,9.75295587,203.49,203.47,0.03]
[1753203936228,9.75295587,203.48,203.47,0.03]
[1753203936456,10.41295587,203.48,203.44,0.03]
[1753203936652,9.75295587,203.45,203.44,0.03]
[1753203937054,0.66,203.45,203.44,0.03]
[1753203937235,10.41295587,203.45,203.44,0.03]
[1753203937546,0.14216157,203.44,203.43,0.03]
[1753203937745,26.0,203.41,203.39,0.03]
[1753203937941,26.0,203.41,203.3,0.03]
[1753203937942,26.0,203.37,203.3,0.03]
[1753203938147,9.75295587,203.33,203.3,0.03]
[1753203938534,10.41295587,203.33,203.3,0.03]
[1753203940065,15.33106928,203.33,203.3,0.03]
[1753203940742,50.57106928,203.33,203.3,0.03]
[1753203941150,45.65295587,203.33,203.3,0.03]
[1753203941351,50.57106928,203.33,203.3,0.03]
[1753203942564,40.81811341,203.33,203.3,0.03]
[1753203942755,35.9,203.33,203.3,0.03]
[1753203943268,50.71323085,203.33,203.3,0.03]
[1753203943965,0.14216157,203.32,203.3,0.03]
[1753203944145,15.33155308,203.31,203.3,0.03]
[1753203944740,0.66,203.31,203.3,0.03]
[1753203944941,10.41295587,203.31,203.3,0.03]
[1753203946269,0.14216157,203.35,203.27,9.75295587]
[1753203946450,26.0,203.31,203.27,9.75295587]
[1753203947045,26.0,203.31,203.28,9.75295587]
[1753203947347,26.0,203.31,203.27,9.75295587]
[1753203947548,61.9,203.34,203.29,9.75295587]
[1753203947756,0.67,203.33,203.29,9.75295587]
[1753203947960,61.24,203.34,203.3,9.75295587]
[1753203948166,61.24,203.34,203.29,9.75295587]
[1753203948342,61.24,203.34,203.26,5.21962702]
[1753203948343,35.24,203.34,203.33,9.75295587]
[1753203948554,5.58738091,203.37,203.33,9.75295587]
[1753203949290,0.67,203.37,203.33,9.75295587]
[1753203949472,0.67,203.36,203.32,9.75295587]
[1753203949971,35.26,203.38,203.33,9.75295587]
[1753203950369,0.67,203.37,203.33,9.75295587]
[1753203950566,40.17702583,203.38,203.32,9.75295587]
[1753203950768,40.17702583,203.38,203.26,0.03]
[1753203950769,9.75295587,203.33,203.26,0.03]
[1753203950946,9.75295587,203.33,203.27,9.75295587]
[1753203951142,45.01295587,203.34,203.27,9.75295587]
[1753203951373,45.01295587,203.34,203.28,9.75295587]
[1753203951374,35.26,203.34,203.28,9.75295587]
[1753203951545,35.93,203.34,203.27,9.75295587]
[1753203951868,9.75295587,203.33,203.26,0.03]
[1753203952071,10.42295587,203.33,203.26,0.03]
[1753203952283,15.34126645,203.33,203.27,9.75295587]
[1753203954583,0.67,203.39,203.32,9.75295587]
[1753203954754,0.67,203.39,203.31,0.27]
[1753203954755,35.26,203.38,203.31,0.27]
[1753203954953,35.26,203.38,203.34,9.75295587]
[1753203955148,35.93,203.38,203.34,9.75295587]
[1753203955472,0.67,203.37,203.32,9.75295587]
[1753203955692,10.42295587,203.36,203.3,9.75295587]
[1753203955987,10.42295587,203.36,203.27,29.76]
[1753203955988,10.42295587,203.36,203.29,9.75295587]
[1753203956666,10.42295587,203.36,203.3,9.75295587]
[1753203956867,15.34038686,203.36,203.3,9.75295587]
[1753203957183,5.58743099,203.36,203.31,9.75295587]
[1753203957382,4.91743099,203.36,203.31,9.75295587]
[1753203957687,5.58743099,203.36,203.31,9.75295587]
[1753203958182,5.58743099,203.36,203.32,9.75295587]
[1753203958506,9.75295587,203.33,203.26,0.03]
[1753203958671,9.75295587,203.33,203.27,9.75295587]
[1753203958864,10.42295587,203.32,203.26,0.03]
[1753203959176,26.67,203.32,203.26,0.03]
[1753203959358,9.75295587,203.3,203.26,0.03]
[1753203959561,45.01295587,203.3,203.26,0.03]
[1753203959788,9.75295587,203.29,203.26,0.03]
[1753203959977,9.75295587,203.28,203.26,0.03]
[1753203960169,10.42295587,203.28,203.26,0.03]
[1753203960492,0.67,203.27,203.26,0.03]
[1753203960663,0.67,203.27,203.26,9.78295587]
[1753203960858,40.17890991,203.3,203.26,9.78295587]
[1753203961265,40.17890579,203.3,203.26,0.03]
[1753203961486,40.84890579,203.3,203.26,0.03]
[1753203961803,0.67,203.29,203.26,0.03]
[1753203962003,10.42295587,203.29,203.26,0.03]
[1753203962292,4.91956511,203.27,203.26,0.03]
[1753203962677,41.34252098,203.27,203.25,0.03]
[1753203962874,45.68295587,203.26,203.25,0.03]
[1753203963076,26.0,203.23,203.17,88.63]
[1753203963283,9.75295587,203.19,203.17,88.63]
[1753203963481,9.75295587,203.2,203.17,88.63]
[1753203963786,35.26,203.22,203.17,98.38295587]
[1753203963988,35.26,203.22,203.2,9.75295587]
[1753203964195,35.26,203.25,203.2,9.75295587]
[1753203964499,35.26,203.25,203.22,9.75295587]
[1753203964500,40.18008158,203.25,203.22,9.75295587]
[1753203964693,35.26,203.25,203.23,9.75295587]
[1753203964879,26.0,203.27,203.24,9.75295587]
[1753203965077,35.26,203.28,203.26,9.75295587]
[1753203965285,40.17859721,203.31,203.26,9.75295587]
[1753203965483,0.67,203.3,203.26,88.6]
[1753203965808,0.67,203.29,203.26,88.6]
[1753203966186,26.0,203.27,203.26,88.6]
[1753203966386,0.67,203.38,203.27,46.27468397]
[1753203966582,35.93,203.38,203.33,9.75295587]
[1753203966790,35.26,203.38,203.35,9.75295587]
[1753203967016,4.91620385,203.41,203.37,9.75295587]
[1753203967193,4.91620385,203.41,203.31,46.76654369]
[1753203967194,0.67,203.4,203.32,17.08468397]
[1753203967509,9.75295587,203.38,203.32,9.75295587]
[1753203967883,45.68295587,203.38,203.31,26.53763984]
[1753203968293,45.68295587,203.38,203.32,9.75295587]
[1753203968501,4.91714608,203.37,203.32,9.75295587]
[1753203968692,10.42295587,203.36,203.3,88.6]
[1753203969004,9.75295587,203.35,203.29,9.75295587]
[1753203969580,0.67,203.36,203.31,9.75295587]
[1753203969789,0.67,203.36,203.32,9.75295587]
[1753203970105,0.67,203.36,203.31,9.75295587]
[1753203970308,0.67,203.36,203.3,9.75295587]
[1753203970496,5.58752035,203.36,203.27,34.85172668]
[1753203970696,5.58752035,203.36,203.31,9.75295587]
[1753203970892,4.91752035,203.36,203.3,9.75295587]
[1753203971094,0.67,203.35,203.27,29.79]
[1753203971409,9.75295587,203.32,203.23,35.848]
[1753203971611,10.42295587,203.32,203.25,9.75295587]
[1753203972113,0.67,203.32,203.27,9.75295587]
[1753203972490,4.9183553,203.32,203.28,9.75295587]
[1753203972713,4.9183553,203.32,203.28,98.35295587]
[1753203973086,4.9183553,203.32,203.29,9.75295587]
[1753203973298,5.5883553,203.32,203.28,88.6]
[1753203973511,0.67,203.41,203.32,16.78468397]
[1753203973807,0.06,203.43,203.4,9.75295587]
[1753203974008,0.06,203.43,203.41,16.78468397]
[1753203974341,0.06,203.43,203.42,91.75923358]
[1753203974519,0.06,203.58,203.5,46.27468397]
[1753203974729,0.06,203.58,203.53,26.53763984]
[1753203975018,0.06,203.58,203.53,56.02763984]
[1753203975584,4.97208203,203.58,203.53,56.02763984]
[1753203975901,0.06,203.58,203.53,56.20763984]
[1753203976110,0.06,203.58,203.53,91.95896789]
[1753203976927,0.06,203.58,203.53,91.77896789]
[1753203977293,0.06,203.58,203.53,96.69955948]
[1753203978027,0.77,203.57,203.51,14.67354746]
[1753203978228,0.77,203.57,203.53,14.67354746]
[1753203978386,15.44354746,203.57,203.5,14.67354746]
[1753203978595,0.77,203.54,203.5,14.67354746]
[1753203979330,0.71,203.53,203.48,14.67354746]
[1753203979492,0.71,203.52,203.48,14.67354746]
[1753203979691,0.71,203.52,203.47,14.67354746]
[1753203980018,15.38354746,203.52,203.46,35.24]
[1753203980202,0.06,203.54,203.51,14.67354746]
[1753203980521,0.06,203.54,203.42,88.6]
[1753203980522,14.67354746,203.52,203.42,88.6]
[1753203980688,0.71,203.53,203.47,14.67354746]
[1753203980885,15.38354746,203.53,203.47,14.67354746]
[1753203981117,14.67354746,203.52,203.46,14.67354746]
[1753203981314,0.71,203.53,203.43,88.6]
[1753203981315,14.67354746,203.49,203.43,88.6]
[1753203981607,0.71,203.48,203.43,88.6]
[1753203981812,0.71,203.48,203.42,14.67354746]
[1753203982820,4.91472944,203.47,203.42,14.67354746]
[1753203983004,4.91472944,203.47,203.41,31.45823143]
[1753203983323,5.62472944,203.47,203.41,31.45823143]
[1753203983537,20.2982769,203.47,203.41,31.45823143]
[1753203983891,20.2982769,203.47,203.42,14.67354746]
[1753203983892,4.91472944,203.47,203.42,14.67354746]
[1753203984303,5.62472944,203.47,203.42,14.67354746]
[1753203985218,0.71,203.5,203.45,14.67354746]
[1753203985421,0.77,203.54,203.49,14.67354746]
[1753203985629,4.91351205,203.53,203.49,88.6]
[1753203985825,5.62351205,203.53,203.49,88.6]
[1753203986317,4.91351205,203.53,203.49,88.6]
[1753203986524,4.91376345,203.51,203.49,88.6]
[1753203986724,0.71,203.5,203.49,88.6]
[1753203987121,15.38354746,203.5,203.49,88.6]
[1753203987330,0.71,203.5,203.49,88.6]
[1753203987508,15.38354746,203.5,203.49,88.6]
[1753203988651,20.29755237,203.5,203.49,88.6]
[1753203988922,26.0,203.47,203.41,88.6]
[1753203989142,14.67354746,203.43,203.41,88.6]
[1753203989548,0.71,203.43,203.41,88.6]
[1753203990423,4.91400491,203.5,203.42,31.45823143]
[1753203990635,19.58755237,203.5,203.44,14.67354746]
[1753203990944,19.58755237,203.5,203.45,29.49]
[1753203991146,15.38354746,203.49,203.45,29.49]
[1753203991311,4.91400491,203.5,203.45,44.16354746]
[1753203991521,0.06,203.54,203.49,44.16354746]
[1753203991722,0.06,203.54,203.51,14.67354746]
[1753203991923,0.06,203.54,203.53,60.94823143]
[1753203992129,0.06,203.54,203.53,149.54823143]
[1753203992331,0.06,203.58,203.53,149.66823143]
[1753203992544,0.06,203.58,203.56,60.94823143]
[1753203992746,0.06,203.58,203.56,149.54823143]
[1753203992924,0.06,203.58,203.56,149.66823143]
[1753203993134,0.06,203.58,203.56,184.94823143]
[1753203993335,0.06,203.58,203.56,184.82823143]
[1753203994232,0.06,203.58,203.56,149.54823143]
[1753203994646,0.06,203.58,203.56,184.94823143]
[1753203994947,0.06,203.58,203.56,184.82823143]
[1753203995330,0.06,203.58,203.56,149.54823143]
[1753203997040,0.06,203.59,203.58,119.93823143]
[1753203997959,0.06,203.59,203.58,88.48]
[1753203999060,0.77,203.59,203.58,88.48]
[1753204000162,0.06,203.59,203.58,103.15354746]
[1753204000336,0.06,203.59,203.58,88.48]
[1753204000862,0.06,203.59,203.58,103.15354746]
[1753204001242,0.06,203.59,203.58,98.20145883]
[1753204002555,0.06,203.59,203.58,144.5561428]
[1753204002729,0.06,203.62,203.61,88.36]
[1753204002932,0.06,203.62,203.61,98.08145883]
[1753204004650,0.06,203.62,203.61,144.3161428]
[1753204005253,0.06,203.63,203.62,16.78468397]
[1753204005435,0.06,203.66,203.65,55.9561428]
[1753204005640,0.06,203.66,203.65,82.12788408]
[1753204005840,0.06,203.66,203.65,91.84934291]
[1753204006740,0.06,203.67,203.65,99.2673202]
[1753204006949,0.06,203.67,203.66,56.09830437]
[1753204007145,0.06,203.67,203.66,82.09830437]
[1753204007660,0.2,203.69,203.66,82.09830437]
[1753204007661,0.2,203.69,203.68,72.37684554]
[1753204007962,0.2,203.69,203.68,206.20927059]
[1753204008136,0.2,203.69,203.68,205.71830437]
[1753204008845,0.2,203.69,203.68,175.22580501]
[1753204009158,0.2,203.69,203.68,205.5561428]
[1753204009372,0.2,203.69,203.68,210.60796658]
[1753204009733,0.2,203.69,203.68,215.52496658]
[1753204009937,0.2,203.69,203.68,210.60796658]
[1753204010137,0.2,203.69,203.68,200.88650775]
[1753204010361,0.2,203.69,203.68,210.60796658]
[1753204010863,0.2,203.75,203.74,9.72145883]
[1753204011167,0.2,203.75,203.74,97.56145883]
[1753204012261,0.2,203.75,203.74,87.84]
[1753204012466,0.2,203.75,203.71,87.84]
[1753204012467,15.49943429,203.75,203.71,87.84]
[1753204012766,4.90845727,203.73,203.71,87.84]
[1753204012945,0.67,203.72,203.71,87.84]
[1753204013963,10.39145883,203.72,203.66,87.84]
[1753204014168,9.72145883,203.69,203.66,87.84]
[1753204014465,25.42180044,203.73,203.66,87.84]
[1753204014466,0.67,203.68,203.66,87.84]
[1753204014659,0.67,203.72,203.67,39.17145883]
[1753204014857,0.67,203.71,203.67,39.17145883]
[1753204015780,0.67,203.71,203.67,9.72145883]
[1753204016268,0.67,203.7,203.67,9.72145883]
[1753204016963,0.67,203.73,203.67,9.72145883]
[1753204017270,0.67,203.73,203.71,9.72145883]
[1753204017468,0.67,203.73,203.7,9.72145883]
[1753204017656,0.67,203.73,203.69,9.72145883]
[1753204017965,0.67,203.73,203.68,9.72145883]
[1753204018147,4.90869821,203.72,203.68,9.72145883]
[1753204018343,5.57869821,203.72,203.68,9.72145883]
[1753204019279,0.67,203.71,203.68,9.72145883]
[1753204019652,5.57821635,203.74,203.69,9.72145883]
[1753204019856,0.67,203.73,203.69,9.72145883]
[1753204020165,0.2,203.75,203.71,9.72145883]
[1753204020359,0.87,203.75,203.72,9.72145883]
[1753204020587,0.2,203.75,203.71,9.72145883]
[1753204020880,0.87,203.75,203.71,9.72145883]
[1753204021252,5.10805612,203.75,203.71,9.72145883]
[1753204021452,0.2,203.75,203.73,9.72145883]
[1753204023386,0.67,203.74,203.7,26.5061428]
[1753204023570,0.67,203.74,203.7,115.1061428]
[1753204023882,0.67,203.73,203.7,88.6]
[1753204024049,0.2,203.75,203.74,42.78468397]
[1753204024254,0.2,203.75,203.74,127.53058483]
[1753204024457,0.06,203.76,203.75,46.37684554]
[1753204024680,0.06,203.76,203.75,56.58910191]
[1753204024879,0.06,203.76,203.72,88.6]
[1753204025055,0.06,203.76,203.75,9.72145883]
[1753204025378,0.06,203.76,203.72,88.6]
[1753204025582,0.67,203.75,203.72,88.6]
[1753204025753,0.06,203.76,203.72,88.6]
[1753204025754,0.67,203.74,203.72,88.6]
[1753204026278,0.06,203.76,203.73,9.72145883]
[1753204026487,0.06,203.76,203.74,9.72145883]
[1753204026660,0.06,203.76,203.73,9.72145883]
[1753204026983,0.06,203.76,203.72,133.70145883]
[1753204027880,0.06,203.76,203.73,16.78468397]
[1753204028058,0.06,203.76,203.74,9.72145883]
[1753204028379,0.06,203.76,203.73,16.78468397]
[1753204028585,0.73,203.76,203.73,16.78468397]
[1753204028880,9.72145883,203.74,203.67,0.03]
[1753204029080,26.67,203.75,203.67,0.03]
[1753204029081,9.72145883,203.69,203.67,0.03]
[1753204029401,0.67,203.73,203.67,0.03]
[1753204029556,4.90869821,203.72,203.67,9.75145883]
[1753204029756,5.57869821,203.72,203.67,9.75145883]
[1753204029957,0.67,203.71,203.67,9.75145883]
[1753204030158,0.67,203.7,203.67,0.03]
[1753204030364,0.67,203.71,203.67,9.75145883]
[1753204030570,5.5790125,203.71,203.67,9.75145883]
[1753204030777,0.67,203.71,203.67,9.75145883]
[1753204030990,0.67,203.74,203.69,26.5061428]
[1753204031189,0.67,203.74,203.71,9.72145883]
[1753204031395,26.0,203.75,203.72,9.72145883]
[1753204031695,26.0,203.75,203.69,46.23468397]
[1753204031696,26.67,203.75,203.71,9.72145883]
[1753204032467,31.578061,203.75,203.71,9.72145883]
[1753204033481,79.48215883,203.78,203.72,9.72145883]
[1753204033990,5.63778095,203.76,203.72,9.72145883]
[1753204034571,0.67,203.75,203.72,98.32145883]
[1753204035482,0.67,203.75,203.72,88.6]
[1753204036591,0.06,203.76,203.72,98.32145883]
[1753204036792,0.73,203.76,203.72,98.32145883]
[1753204037693,0.06,203.76,203.72,88.6]
[1753204038008,0.71,203.75,203.72,98.32145883]
[1753204038191,0.71,203.75,203.72,88.6]
[1753204038499,0.71,203.74,203.72,88.6]
[1753204038687,4.90817483,203.75,203.72,88.6]
[1753204038892,0.71,203.74,203.72,88.6]
[1753204039114,4.96774389,203.76,203.72,88.6]
[1753204039423,0.06,203.76,203.75,9.72145883]
[1753204040298,0.06,203.76,203.75,115.1061428]
[1753204040504,0.06,203.76,203.75,88.6]
[1753204041699,0.06,203.76,203.75,115.1061428]
[1753204041886,0.06,203.76,203.75,144.5561428]
[1753204042087,0.06,203.76,203.75,149.46411826]
[1753204043714,0.06,203.76,203.75,149.60627983]
[1753204045812,0.06,203.76,203.75,164.24473866]
[1753204047013,0.06,203.76,203.75,159.32773866]
[1753204047329,0.06,203.8,203.77,46.37684554]
[1753204047535,0.06,203.8,203.79,55.9561428]
[1753204047833,0.06,203.8,203.79,134.77468397]
[1753204047996,0.06,203.8,203.79,144.4961428]
[1753204048791,0.06,203.8,203.79,149.40315492]